{"text_format":"1","workbook":"xlsx","n_sheets":2,"sheets":["Space","Picklist"],"not_rendered":{"charts":0,"images":0,"macros":1,"external_links":0,"defined_names":0,"comments":0,"pivot_tables":0},"unopened":[],"bounds":{"document_bytes":16777216,"sheet_cells":100000,"rows_first":2000,"rows_last":500,"rows_between":2000,"halvings":0,"cell_chars":16384,"cell_head_chars":4096},"cells_cut":0,"cells_raw":0,"read":"whole","date_system":"1900"}

{"sheet":"Space","index":0,"n_rows":309,"n_cols":30,"rows_kept":309,"cut":false,"hidden":false,"merged":[[7,29,8,29],[0,7,0,9],[1,7,1,9],[2,7,2,9],[3,7,3,9],[4,7,4,9],[7,18,8,18],[7,19,8,23],[7,24,8,28],[3,10,3,12],[7,7,8,7],[7,8,8,11],[7,12,8,17],[7,0,9,0],[7,1,8,1],[7,3,8,3],[7,4,8,4],[7,5,8,6],[7,2,8,2]]}
[null,"Бібліотека препаратів  AIS \"__________\"",null,null,null,null,null,"Не змінювати"]
[null,"Лікарня:                               ",null,null,null,null,null,"Заповнити"]
[null,"Затвердив:",null,null,null,null,null,"Обрати зі списку"]
[null,"Дата заповнення",null,null,null,null,null,"Обов'язково заповнити"]
[null,"Підпис",null,null,null,null,null,"Рекомендовано заповнити"]
[]
[null,"!!!",null,"!!!","!!!","!!!","!!!",null,null,null,null,null,"!!!","!!!","!!!","!!!","!!!","!!!","!!!"]
["No.","Категорії","Колір категорії","Повна назва препарату","Коротка назва препарату","Тип насосу",null,null,"Концентрація",null,null,null,"DoseGuard (ліміт дозування)",null,null,null,null,null,"Ручний болюс","Об'єм ручного болюсу",null,null,null,null,"Speed of hand bolus",null,null,null,null,"VTBI (ml)"]
[]
[null,"До 30ти категорій","Виберіть один колір для всіх ліків цієї категорії","Кожна концентрація кожного препарату має іншу назву, до 23 символів","Відображається під час інфузії, до 8 символів","Infusomat","Perfusor",null,"Кількість діючої речовини","Одиниці","Об'єм розчинника (мл)","Концентрація","Жорсткий мінімальний ліміт","М'який мінімальний ліміт","Значення за замовчуванням","М'який максимальний ліміт","Жорсткий максимальний ліміт","одиниці введення","YES /NO","М'який мінімальний ліміт","Значення за замовчуванням","М'який максимальний ліміт","Жорсткий максимальний ліміт","Units","Жорсткий мінімальний ліміт","М'який мінімальний ліміт","Значення за замовчуванням","М'який максимальний ліміт","Одиниці","Объём общего введения (объём, который должен быть влит) в мл"]
[1,"Inotrope",null,"Dopamine 4%","Dopa",null,"X",null,200,"mg",5,{"$f":"I11/K11","v":40},1,2,null,20,25,"mcg/kg/min","YES",1,null,null,5,"ml",null,null,null,null,"ml/h"]
[null,null,null,null,null,null,null,null,null,null,null,{"$error":"#DIV/0!"},null,null,null,null,null,null,null,null,null,null,null,"ml",null,null,null,null,"ml/h"]
[null,null,null,null,null,null,null,null,null,null,null,{"$error":"#DIV/0!"},null,null,null,null,null,null,null,null,null,null,null,"ml",null,null,null,null,"ml/h"]
[null,null,null,null,null,null,null,null,null,null,null,{"$error":"#DIV/0!"},null,null,null,null,null,null,null,null,null,null,null,"ml",null,null,null,null,"ml/h"]
[null,null,null,null,null,null,null,null,null,null,null,{"$error":"#DIV/0!"},null,null,null,null,null,null,null,null,null,null,null,"ml",null,null,null,null,"ml/h"]
[null,null,null,null,null,null,null,null,null,null,null,{"$error":"#DIV/0!"},null,null,null,null,null,null,null,null,null,null,null,"ml",null,null,null,null,"ml/h"]
[null,null,null,null,null,null,null,null,null,null,null,{"$error":"#DIV/0!"},null,null,null,null,null,null,null,null,null,null,null,"ml",null,null,null,null,"ml/h"]
[null,null,null,null,null,null,null,null,null,null,null,{"$error":"#DIV/0!"},null,null,null,null,null,null,null,null,null,null,null,"ml",null,null,null,null,"ml/h"]
[null,null,null,null,null,null,null,null,null,null,null,{"$error":"#DIV/0!"},null,null,null,null,null,null,null,null,null,null,null,"ml",null,null,null,null,"ml/h"]
[null,null,null,null,null,null,null,null,null,null,null,{"$error":"#DIV/0!"},null,null,null,null,null,null,null,null,null,null,null,"ml",null,null,null,null,"ml/h"]
[null,null,null,null,null,null,null,null,null,null,null,{"$error":"#DIV/0!"},null,null,null,null,null,null,null,null,null,null,null,"ml",null,null,null,null,"ml/h"]
[null,null,null,null,null,null,null,null,null,null,null,{"$error":"#DIV/0!"},null,null,null,null,null,null,null,null,null,null,null,"ml",null,null,null,null,"ml/h"]
[null,null,null,null,null,null,null,null,null,null,null,{"$error":"#DIV/0!"},null,null,null,null,null,null,null,null,null,null,null,"ml",null,null,null,null,"ml/h"]
[null,null,null,null,null,null,null,null,null,null,null,{"$error":"#DIV/0!"},null,null,null,null,null,null,null,null,null,null,null,"ml",null,null,null,null,"ml/h"]
[null,null,null,null,null,null,null,null,null,null,null,{"$error":"#DIV/0!"},null,null,null,null,null,null,null,null,null,null,null,"ml",null,null,null,null,"ml/h"]
[null,null,null,null,null,null,null,null,null,null,null,{"$error":"#DIV/0!"},null,null,null,null,null,null,null,null,null,null,null,"ml",null,null,null,null,"ml/h"]
[null,null,null,null,null,null,null,null,null,null,null,{"$error":"#DIV/0!"},null,null,null,null,null,null,null,null,null,null,null,"ml",null,null,null,null,"ml/h"]
[null,null,null,null,null,null,null,null,null,null,null,{"$error":"#DIV/0!"},null,null,null,null,null,null,null,null,null,null,null,"ml",null,null,null,null,"ml/h"]
[19,null,null,null,null,null,null,null,null,null,null,{"$error":"#DIV/0!"},null,null,null,null,null,null,null,null,null,null,null,null,null,null,null,null,"ml/h"]
[20,null,null,null,null,null,null,null,null,null,null,{"$error":"#DIV/0!"},null,null,null,null,null,null,null,null,null,null,null,null,null,null,null,null,"ml/h"]
[21,null,null,null,null,null,null,null,null,null,null,{"$error":"#DIV/0!"},null,null,null,null,null,null,null,null,null,null,null,null,null,null,null,null,"ml/h"]
[22,null,null,null,null,null,null,null,null,null,null,{"$error":"#DIV/0!"},null,null,null,null,null,null,null,null,null,null,null,null,null,null,null,null,"ml/h"]
[23,null,null,null,null,null,null,null,null,null,null,{"$error":"#DIV/0!"},null,null,null,null,null,null,null,null,null,null,null,null,null,null,null,null,"ml/h"]
[24,null,null,null,null,null,null,null,null,null,null,{"$error":"#DIV/0!"},null,null,null,null,null,null,null,null,null,null,null,null,null,null,null,null,"ml/h"]
[25,null,null,null,null,null,null,null,null,null,null,{"$error":"#DIV/0!"},null,null,null,null,null,null,null,null,null,null,null,null,null,null,null,null,"ml/h"]
[26,null,null,null,null,null,null,null,null,null,null,{"$error":"#DIV/0!"},null,null,null,null,null,null,null,null,null,null,null,null,null,null,null,null,"ml/h"]
[27,null,null,null,null,null,null,null,null,null,null,{"$error":"#DIV/0!"},null,null,null,null,null,null,null,null,null,null,null,null,null,null,null,null,"ml/h"]
[28,null,null,null,null,null,null,null,null,null,null,{"$error":"#DIV/0!"},null,null,null,null,null,null,null,null,null,null,null,null,null,null,null,null,"ml/h"]
[29,null,null,null,null,null,null,null,null,null,null,{"$error":"#DIV/0!"},null,null,null,null,null,null,null,null,null,null,null,null,null,null,null,null,"ml/h"]
[30,null,null,null,null,null,null,null,null,null,null,{"$error":"#DIV/0!"},null,null,null,null,null,null,null,null,null,null,null,null,null,null,null,null,"ml/h"]
[31,null,null,null,null,null,null,null,null,null,null,{"$error":"#DIV/0!"},null,null,null,null,null,null,null,null,null,null,null,null,null,null,null,null,"ml/h"]
[32,null,null,null,null,null,null,null,null,null,null,{"$error":"#DIV/0!"},null,null,null,null,null,null,null,null,null,null,null,null,null,null,null,null,"ml/h"]
[33,null,null,null,null,null,null,null,null,null,null,{"$error":"#DIV/0!"},null,null,null,null,null,null,null,null,null,null,null,null,null,null,null,null,"ml/h"]
[34,null,null,null,null,null,null,null,null,null,null,{"$error":"#DIV/0!"},null,null,null,null,null,null,null,null,null,null,null,null,null,null,null,null,"ml/h"]
[35,null,null,null,null,null,null,null,null,null,null,{"$error":"#DIV/0!"},null,null,null,null,null,null,null,null,null,null,null,null,null,null,null,null,"ml/h"]
[36,null,null,null,null,null,null,null,null,null,null,{"$error":"#DIV/0!"},null,null,null,null,null,null,null,null,null,null,null,null,null,null,null,null,"ml/h"]
[37,null,null,null,null,null,null,null,null,null,null,{"$error":"#DIV/0!"},null,null,null,null,null,null,null,null,null,null,null,null,null,null,null,null,"ml/h"]
[38,null,null,null,null,null,null,null,null,null,null,{"$error":"#DIV/0!"},null,null,null,null,null,null,null,null,null,null,null,null,null,null,null,null,"ml/h"]
[39,null,null,null,null,null,null,null,null,null,null,{"$error":"#DIV/0!"},null,null,null,null,null,null,null,null,null,null,null,null,null,null,null,null,"ml/h"]
[40,null,null,null,null,null,null,null,null,null,null,{"$error":"#DIV/0!"},null,null,null,null,null,null,null,null,null,null,null,null,null,null,null,null,"ml/h"]
[41,null,null,null,null,null,null,null,null,null,null,{"$error":"#DIV/0!"},null,null,null,null,null,null,null,null,null,null,null,null,null,null,null,null,"ml/h"]
[42,null,null,null,null,null,null,null,null,null,null,{"$error":"#DIV/0!"},null,null,null,null,null,null,null,null,null,null,null,null,null,null,null,null,"ml/h"]
[43,null,null,null,null,null,null,null,null,null,null,{"$error":"#DIV/0!"},null,null,null,null,null,null,null,null,null,null,null,null,null,null,null,null,"ml/h"]
[44,null,null,null,null,null,null,null,null,null,null,{"$error":"#DIV/0!"},null,null,null,null,null,null,null,null,null,null,null,null,null,null,null,null,"ml/h"]
[45,null,null,null,null,null,null,null,null,null,null,{"$error":"#DIV/0!"},null,null,null,null,null,null,null,null,null,null,null,null,null,null,null,null,"ml/h"]
[46,null,null,null,null,null,null,null,null,null,null,{"$error":"#DIV/0!"},null,null,null,null,null,null,null,null,null,null,null,null,null,null,null,null,"ml/h"]
[47,null,null,null,null,null,null,null,null,null,null,{"$error":"#DIV/0!"},null,null,null,null,null,null,null,null,null,null,null,null,null,null,null,null,"ml/h"]
[48,null,null,null,null,null,null,null,null,null,null,{"$error":"#DIV/0!"},null,null,null,null,null,null,null,null,null,null,null,null,null,null,null,null,"ml/h"]
[49,null,null,null,null,null,null,null,null,null,null,{"$error":"#DIV/0!"},null,null,null,null,null,null,null,null,null,null,null,null,null,null,null,null,"ml/h"]
[50,null,null,null,null,null,null,null,null,null,null,{"$error":"#DIV/0!"},null,null,null,null,null,null,null,null,null,null,null,null,null,null,null,null,"ml/h"]
[51,null,null,null,null,null,null,null,null,null,null,{"$error":"#DIV/0!"},null,null,null,null,null,null,null,null,null,null,null,null,null,null,null,null,"ml/h"]
[52,null,null,null,null,null,null,null,null,null,null,{"$error":"#DIV/0!"},null,null,null,null,null,null,null,null,null,null,null,null,null,null,null,null,"ml/h"]
[53,null,null,null,null,null,null,null,null,null,null,{"$error":"#DIV/0!"},null,null,null,null,null,null,null,null,null,null,null,null,null,null,null,null,"ml/h"]
[54,null,null,null,null,null,null,null,null,null,null,{"$error":"#DIV/0!"},null,null,null,null,null,null,null,null,null,null,null,null,null,null,null,null,"ml/h"]
[55,null,null,null,null,null,null,null,null,null,null,{"$error":"#DIV/0!"},null,null,null,null,null,null,null,null,null,null,null,null,null,null,null,null,"ml/h"]
[56,null,null,null,null,null,null,null,null,null,null,{"$error":"#DIV/0!"},null,null,null,null,null,null,null,null,null,null,null,null,null,null,null,null,"ml/h"]
[57,null,null,null,null,null,null,null,null,null,null,{"$error":"#DIV/0!"},null,null,null,null,null,null,null,null,null,null,null,null,null,null,null,null,"ml/h"]
[58,null,null,null,null,null,null,null,null,null,null,{"$error":"#DIV/0!"},null,null,null,null,null,null,null,null,null,null,null,null,null,null,null,null,"ml/h"]
[59,null,null,null,null,null,null,null,null,null,null,{"$error":"#DIV/0!"},null,null,null,null,null,null,null,null,null,null,null,null,null,null,null,null,"ml/h"]
[60,null,null,null,null,null,null,null,null,null,null,{"$error":"#DIV/0!"},null,null,null,null,null,null,null,null,null,null,null,null,null,null,null,null,"ml/h"]
[61,null,null,null,null,null,null,null,null,null,null,{"$error":"#DIV/0!"},null,null,null,null,null,null,null,null,null,null,null,null,null,null,null,null,"ml/h"]
[62,null,null,null,null,null,null,null,null,null,null,{"$error":"#DIV/0!"},null,null,null,null,null,null,null,null,null,null,null,null,null,null,null,null,"ml/h"]
[63,null,null,null,null,null,null,null,null,null,null,{"$error":"#DIV/0!"},null,null,null,null,null,null,null,null,null,null,null,null,null,null,null,null,"ml/h"]
[64,null,null,null,null,null,null,null,null,null,null,{"$error":"#DIV/0!"},null,null,null,null,null,null,null,null,null,null,null,null,null,null,null,null,"ml/h"]
[65,null,null,null,null,null,null,null,null,null,null,{"$f":"I75/K75","v":{"$error":"#DIV/0!"}},null,null,null,null,null,null,null,null,null,null,null,null,null,null,null,null,"ml/h"]
[66,null,null,null,null,null,null,null,null,null,null,{"$error":"#DIV/0!"},null,null,null,null,null,null,null,null,null,null,null,null,null,null,null,null,"ml/h"]
[67,null,null,null,null,null,null,null,null,null,null,{"$error":"#DIV/0!"},null,null,null,null,null,null,null,null,null,null,null,null,null,null,null,null,"ml/h"]
[68,null,null,null,null,null,null,null,null,null,null,{"$error":"#DIV/0!"},null,null,null,null,null,null,null,null,null,null,null,null,null,null,null,null,"ml/h"]
[69,null,null,null,null,null,null,null,null,null,null,{"$error":"#DIV/0!"},null,null,null,null,null,null,null,null,null,null,null,null,null,null,null,null,"ml/h"]
[70,null,null,null,null,null,null,null,null,null,null,{"$error":"#DIV/0!"},null,null,null,null,null,null,null,null,null,null,null,null,null,null,null,null,"ml/h"]
[71,null,null,null,null,null,null,null,null,null,null,{"$error":"#DIV/0!"},null,null,null,null,null,null,null,null,null,null,null,null,null,null,null,null,"ml/h"]
[72,null,null,null,null,null,null,null,null,null,null,{"$error":"#DIV/0!"},null,null,null,null,null,null,null,null,null,null,null,null,null,null,null,null,"ml/h"]
[73,null,null,null,null,null,null,null,null,null,null,{"$error":"#DIV/0!"},null,null,null,null,null,null,null,null,null,null,null,null,null,null,null,null,"ml/h"]
[74,null,null,null,null,null,null,null,null,null,null,{"$error":"#DIV/0!"},null,null,null,null,null,null,null,null,null,null,null,null,null,null,null,null,"ml/h"]
[75,null,null,null,null,null,null,null,null,null,null,{"$error":"#DIV/0!"},null,null,null,null,null,null,null,null,null,null,null,null,null,null,null,null,"ml/h"]
[76,null,null,null,null,null,null,null,null,null,null,{"$error":"#DIV/0!"},null,null,null,null,null,null,null,null,null,null,null,null,null,null,null,null,"ml/h"]
[77,null,null,null,null,null,null,null,null,null,null,{"$error":"#DIV/0!"},null,null,null,null,null,null,null,null,null,null,null,null,null,null,null,null,"ml/h"]
[78,null,null,null,null,null,null,null,null,null,null,{"$error":"#DIV/0!"},null,null,null,null,null,null,null,null,null,null,null,null,null,null,null,null,"ml/h"]
[79,null,null,null,null,null,null,null,null,null,null,{"$error":"#DIV/0!"},null,null,null,null,null,null,null,null,null,null,null,null,null,null,null,null,"ml/h"]
[80,null,null,null,null,null,null,null,null,null,null,{"$error":"#DIV/0!"},null,null,null,null,null,null,null,null,null,null,null,null,null,null,null,null,"ml/h"]
[81,null,null,null,null,null,null,null,null,null,null,{"$error":"#DIV/0!"},null,null,null,null,null,null,null,null,null,null,null,null,null,null,null,null,"ml/h"]
[82,null,null,null,null,null,null,null,null,null,null,{"$error":"#DIV/0!"},null,null,null,null,null,null,null,null,null,null,null,null,null,null,null,null,"ml/h"]
[83,null,null,null,null,null,null,null,null,null,null,{"$error":"#DIV/0!"},null,null,null,null,null,null,null,null,null,null,null,null,null,null,null,null,"ml/h"]
[84,null,null,null,null,null,null,null,null,null,null,{"$error":"#DIV/0!"},null,null,null,null,null,null,null,null,null,null,null,null,null,null,null,null,"ml/h"]
[85,null,null,null,null,null,null,null,null,null,null,{"$error":"#DIV/0!"},null,null,null,null,null,null,null,null,null,null,null,null,null,null,null,null,"ml/h"]
[86,null,null,null,null,null,null,null,null,null,null,{"$error":"#DIV/0!"},null,null,null,null,null,null,null,null,null,null,null,null,null,null,null,null,"ml/h"]
[87,null,null,null,null,null,null,null,null,null,null,{"$error":"#DIV/0!"},null,null,null,null,null,null,null,null,null,null,null,null,null,null,null,null,"ml/h"]
[88,null,null,null,null,null,null,null,null,null,null,{"$error":"#DIV/0!"},null,null,null,null,null,null,null,null,null,null,null,null,null,null,null,null,"ml/h"]
[89,null,null,null,null,null,null,null,null,null,null,{"$error":"#DIV/0!"},null,null,null,null,null,null,null,null,null,null,null,null,null,null,null,null,"ml/h"]
[90,null,null,null,null,null,null,null,null,null,null,{"$error":"#DIV/0!"},null,null,null,null,null,null,null,null,null,null,null,null,null,null,null,null,"ml/h"]
[91,null,null,null,null,null,null,null,null,null,null,{"$error":"#DIV/0!"},null,null,null,null,null,null,null,null,null,null,null,null,null,null,null,null,"ml/h"]
[92,null,null,null,null,null,null,null,null,null,null,{"$error":"#DIV/0!"},null,null,null,null,null,null,null,null,null,null,null,null,null,null,null,null,"ml/h"]
[93,null,null,null,null,null,null,null,null,null,null,{"$error":"#DIV/0!"},null,null,null,null,null,null,null,null,null,null,null,null,null,null,null,null,"ml/h"]
[94,null,null,null,null,null,null,null,null,null,null,{"$error":"#DIV/0!"},null,null,null,null,null,null,null,null,null,null,null,null,null,null,null,null,"ml/h"]
[95,null,null,null,null,null,null,null,null,null,null,{"$error":"#DIV/0!"},null,null,null,null,null,null,null,null,null,null,null,null,null,null,null,null,"ml/h"]
[96,null,null,null,null,null,null,null,null,null,null,{"$error":"#DIV/0!"},null,null,null,null,null,null,null,null,null,null,null,null,null,null,null,null,"ml/h"]
[97,null,null,null,null,null,null,null,null,null,null,{"$error":"#DIV/0!"},null,null,null,null,null,null,null,null,null,null,null,null,null,null,null,null,"ml/h"]
[98,null,null,null,null,null,null,null,null,null,null,{"$error":"#DIV/0!"},null,null,null,null,null,null,null,null,null,null,null,null,null,null,null,null,"ml/h"]
[99,null,null,null,null,null,null,null,null,null,null,{"$error":"#DIV/0!"},null,null,null,null,null,null,null,null,null,null,null,null,null,null,null,null,"ml/h"]
[100,null,null,null,null,null,null,null,null,null,null,{"$error":"#DIV/0!"},null,null,null,null,null,null,null,null,null,null,null,null,null,null,null,null,"ml/h"]
[101,null,null,null,null,null,null,null,null,null,null,{"$error":"#DIV/0!"},null,null,null,null,null,null,null,null,null,null,null,null,null,null,null,null,"ml/h"]
[102,null,null,null,null,null,null,null,null,null,null,{"$error":"#DIV/0!"},null,null,null,null,null,null,null,null,null,null,null,null,null,null,null,null,"ml/h"]
[103,null,null,null,null,null,null,null,null,null,null,{"$error":"#DIV/0!"},null,null,null,null,null,null,null,null,null,null,null,null,null,null,null,null,"ml/h"]
[104,null,null,null,null,null,null,null,null,null,null,{"$error":"#DIV/0!"},null,null,null,null,null,null,null,null,null,null,null,null,null,null,null,null,"ml/h"]
[105,null,null,null,null,null,null,null,null,null,null,{"$error":"#DIV/0!"},null,null,null,null,null,null,null,null,null,null,null,null,null,null,null,null,"ml/h"]
[106,null,null,null,null,null,null,null,null,null,null,{"$error":"#DIV/0!"},null,null,null,null,null,null,null,null,null,null,null,null,null,null,null,null,"ml/h"]
[107,null,null,null,null,null,null,null,null,null,null,{"$error":"#DIV/0!"},null,null,null,null,null,null,null,null,null,null,null,null,null,null,null,null,"ml/h"]
[108,null,null,null,null,null,null,null,null,null,null,{"$error":"#DIV/0!"},null,null,null,null,null,null,null,null,null,null,null,null,null,null,null,null,"ml/h"]
[109,null,null,null,null,null,null,null,null,null,null,{"$error":"#DIV/0!"},null,null,null,null,null,null,null,null,null,null,null,null,null,null,null,null,"ml/h"]
[110,null,null,null,null,null,null,null,null,null,null,{"$error":"#DIV/0!"},null,null,null,null,null,null,null,null,null,null,null,null,null,null,null,null,"ml/h"]
[111,null,null,null,null,null,null,null,null,null,null,{"$error":"#DIV/0!"},null,null,null,null,null,null,null,null,null,null,null,null,null,null,null,null,"ml/h"]
[112,null,null,null,null,null,null,null,null,null,null,{"$error":"#DIV/0!"},null,null,null,null,null,null,null,null,null,null,null,null,null,null,null,null,"ml/h"]
[113,null,null,null,null,null,null,null,null,null,null,{"$error":"#DIV/0!"},null,null,null,null,null,null,null,null,null,null,null,null,null,null,null,null,"ml/h"]
[114,null,null,null,null,null,null,null,null,null,null,{"$error":"#DIV/0!"},null,null,null,null,null,null,null,null,null,null,null,null,null,null,null,null,"ml/h"]
[115,null,null,null,null,null,null,null,null,null,null,{"$error":"#DIV/0!"},null,null,null,null,null,null,null,null,null,null,null,null,null,null,null,null,"ml/h"]
[116,null,null,null,null,null,null,null,null,null,null,{"$error":"#DIV/0!"},null,null,null,null,null,null,null,null,null,null,null,null,null,null,null,null,"ml/h"]
[117,null,null,null,null,null,null,null,null,null,null,{"$error":"#DIV/0!"},null,null,null,null,null,null,null,null,null,null,null,null,null,null,null,null,"ml/h"]
[118,null,null,null,null,null,null,null,null,null,null,{"$error":"#DIV/0!"},null,null,null,null,null,null,null,null,null,null,null,null,null,null,null,null,"ml/h"]
[119,null,null,null,null,null,null,null,null,null,null,{"$error":"#DIV/0!"},null,null,null,null,null,null,null,null,null,null,null,null,null,null,null,null,"ml/h"]
[120,null,null,null,null,null,null,null,null,null,null,{"$error":"#DIV/0!"},null,null,null,null,null,null,null,null,null,null,null,null,null,null,null,null,"ml/h"]
[121,null,null,null,null,null,null,null,null,null,null,{"$error":"#DIV/0!"},null,null,null,null,null,null,null,null,null,null,null,null,null,null,null,null,"ml/h"]
[122,null,null,null,null,null,null,null,null,null,null,{"$error":"#DIV/0!"},null,null,null,null,null,null,null,null,null,null,null,null,null,null,null,null,"ml/h"]
[123,null,null,null,null,null,null,null,null,null,null,{"$error":"#DIV/0!"},null,null,null,null,null,null,null,null,null,null,null,null,null,null,null,null,"ml/h"]
[124,null,null,null,null,null,null,null,null,null,null,{"$error":"#DIV/0!"},null,null,null,null,null,null,null,null,null,null,null,null,null,null,null,null,"ml/h"]
[125,null,null,null,null,null,null,null,null,null,null,{"$error":"#DIV/0!"},null,null,null,null,null,null,null,null,null,null,null,null,null,null,null,null,"ml/h"]
[126,null,null,null,null,null,null,null,null,null,null,{"$error":"#DIV/0!"},null,null,null,null,null,null,null,null,null,null,null,null,null,null,null,null,"ml/h"]
[127,null,null,null,null,null,null,null,null,null,null,{"$error":"#DIV/0!"},null,null,null,null,null,null,null,null,null,null,null,null,null,null,null,null,"ml/h"]
[128,null,null,null,null,null,null,null,null,null,null,{"$error":"#DIV/0!"},null,null,null,null,null,null,null,null,null,null,null,null,null,null,null,null,"ml/h"]
[129,null,null,null,null,null,null,null,null,null,null,{"$f":"I139/K139","v":{"$error":"#DIV/0!"}},null,null,null,null,null,null,null,null,null,null,null,null,null,null,null,null,"ml/h"]
[130,null,null,null,null,null,null,null,null,null,null,{"$error":"#DIV/0!"},null,null,null,null,null,null,null,null,null,null,null,null,null,null,null,null,"ml/h"]
[131,null,null,null,null,null,null,null,null,null,null,{"$error":"#DIV/0!"},null,null,null,null,null,null,null,null,null,null,null,null,null,null,null,null,"ml/h"]
[132,null,null,null,null,null,null,null,null,null,null,{"$error":"#DIV/0!"},null,null,null,null,null,null,null,null,null,null,null,null,null,null,null,null,"ml/h"]
[133,null,null,null,null,null,null,null,null,null,null,{"$error":"#DIV/0!"},null,null,null,null,null,null,null,null,null,null,null,null,null,null,null,null,"ml/h"]
[134,null,null,null,null,null,null,null,null,null,null,{"$error":"#DIV/0!"},null,null,null,null,null,null,null,null,null,null,null,null,null,null,null,null,"ml/h"]
[135,null,null,null,null,null,null,null,null,null,null,{"$error":"#DIV/0!"},null,null,null,null,null,null,null,null,null,null,null,null,null,null,null,null,"ml/h"]
[136,null,null,null,null,null,null,null,null,null,null,{"$error":"#DIV/0!"},null,null,null,null,null,null,null,null,null,null,null,null,null,null,null,null,"ml/h"]
[137,null,null,null,null,null,null,null,null,null,null,{"$error":"#DIV/0!"},null,null,null,null,null,null,null,null,null,null,null,null,null,null,null,null,"ml/h"]
[138,null,null,null,null,null,null,null,null,null,null,{"$error":"#DIV/0!"},null,null,null,null,null,null,null,null,null,null,null,null,null,null,null,null,"ml/h"]
[139,null,null,null,null,null,null,null,null,null,null,{"$error":"#DIV/0!"},null,null,null,null,null,null,null,null,null,null,null,null,null,null,null,null,"ml/h"]
[140,null,null,null,null,null,null,null,null,null,null,{"$error":"#DIV/0!"},null,null,null,null,null,null,null,null,null,null,null,null,null,null,null,null,"ml/h"]
[141,null,null,null,null,null,null,null,null,null,null,{"$error":"#DIV/0!"},null,null,null,null,null,null,null,null,null,null,null,null,null,null,null,null,"ml/h"]
[142,null,null,null,null,null,null,null,null,null,null,{"$error":"#DIV/0!"},null,null,null,null,null,null,null,null,null,null,null,null,null,null,null,null,"ml/h"]
[143,null,null,null,null,null,null,null,null,null,null,{"$error":"#DIV/0!"},null,null,null,null,null,null,null,null,null,null,null,null,null,null,null,null,"ml/h"]
[144,null,null,null,null,null,null,null,null,null,null,{"$error":"#DIV/0!"},null,null,null,null,null,null,null,null,null,null,null,null,null,null,null,null,"ml/h"]
[145,null,null,null,null,null,null,null,null,null,null,{"$error":"#DIV/0!"},null,null,null,null,null,null,null,null,null,null,null,null,null,null,null,null,"ml/h"]
[146,null,null,null,null,null,null,null,null,null,null,{"$error":"#DIV/0!"},null,null,null,null,null,null,null,null,null,null,null,null,null,null,null,null,"ml/h"]
[147,null,null,null,null,null,null,null,null,null,null,{"$error":"#DIV/0!"},null,null,null,null,null,null,null,null,null,null,null,null,null,null,null,null,"ml/h"]
[148,null,null,null,null,null,null,null,null,null,null,{"$error":"#DIV/0!"},null,null,null,null,null,null,null,null,null,null,null,null,null,null,null,null,"ml/h"]
[149,null,null,null,null,null,null,null,null,null,null,{"$error":"#DIV/0!"},null,null,null,null,null,null,null,null,null,null,null,null,null,null,null,null,"ml/h"]
[150,null,null,null,null,null,null,null,null,null,null,{"$error":"#DIV/0!"},null,null,null,null,null,null,null,null,null,null,null,null,null,null,null,null,"ml/h"]
[151,null,null,null,null,null,null,null,null,null,null,{"$error":"#DIV/0!"},null,null,null,null,null,null,null,null,null,null,null,null,null,null,null,null,"ml/h"]
[152,null,null,null,null,null,null,null,null,null,null,{"$error":"#DIV/0!"},null,null,null,null,null,null,null,null,null,null,null,null,null,null,null,null,"ml/h"]
[153,null,null,null,null,null,null,null,null,null,null,{"$error":"#DIV/0!"},null,null,null,null,null,null,null,null,null,null,null,null,null,null,null,null,"ml/h"]
[154,null,null,null,null,null,null,null,null,null,null,{"$error":"#DIV/0!"},null,null,null,null,null,null,null,null,null,null,null,null,null,null,null,null,"ml/h"]
[155,null,null,null,null,null,null,null,null,null,null,{"$error":"#DIV/0!"},null,null,null,null,null,null,null,null,null,null,null,null,null,null,null,null,"ml/h"]
[156,null,null,null,null,null,null,null,null,null,null,{"$error":"#DIV/0!"},null,null,null,null,null,null,null,null,null,null,null,null,null,null,null,null,"ml/h"]
[157,null,null,null,null,null,null,null,null,null,null,{"$error":"#DIV/0!"},null,null,null,null,null,null,null,null,null,null,null,null,null,null,null,null,"ml/h"]
[158,null,null,null,null,null,null,null,null,null,null,{"$error":"#DIV/0!"},null,null,null,null,null,null,null,null,null,null,null,null,null,null,null,null,"ml/h"]
[159,null,null,null,null,null,null,null,null,null,null,{"$error":"#DIV/0!"},null,null,null,null,null,null,null,null,null,null,null,null,null,null,null,null,"ml/h"]
[160,null,null,null,null,null,null,null,null,null,null,{"$error":"#DIV/0!"},null,null,null,null,null,null,null,null,null,null,null,null,null,null,null,null,"ml/h"]
[161,null,null,null,null,null,null,null,null,null,null,{"$error":"#DIV/0!"},null,null,null,null,null,null,null,null,null,null,null,null,null,null,null,null,"ml/h"]
[162,null,null,null,null,null,null,null,null,null,null,{"$error":"#DIV/0!"},null,null,null,null,null,null,null,null,null,null,null,null,null,null,null,null,"ml/h"]
[163,null,null,null,null,null,null,null,null,null,null,{"$error":"#DIV/0!"},null,null,null,null,null,null,null,null,null,null,null,null,null,null,null,null,"ml/h"]
[164,null,null,null,null,null,null,null,null,null,null,{"$error":"#DIV/0!"},null,null,null,null,null,null,null,null,null,null,null,null,null,null,null,null,"ml/h"]
[165,null,null,null,null,null,null,null,null,null,null,{"$error":"#DIV/0!"},null,null,null,null,null,null,null,null,null,null,null,null,null,null,null,null,"ml/h"]
[166,null,null,null,null,null,null,null,null,null,null,{"$error":"#DIV/0!"},null,null,null,null,null,null,null,null,null,null,null,null,null,null,null,null,"ml/h"]
[167,null,null,null,null,null,null,null,null,null,null,{"$error":"#DIV/0!"},null,null,null,null,null,null,null,null,null,null,null,null,null,null,null,null,"ml/h"]
[168,null,null,null,null,null,null,null,null,null,null,{"$error":"#DIV/0!"},null,null,null,null,null,null,null,null,null,null,null,null,null,null,null,null,"ml/h"]
[169,null,null,null,null,null,null,null,null,null,null,{"$error":"#DIV/0!"},null,null,null,null,null,null,null,null,null,null,null,null,null,null,null,null,"ml/h"]
[170,null,null,null,null,null,null,null,null,null,null,{"$error":"#DIV/0!"},null,null,null,null,null,null,null,null,null,null,null,null,null,null,null,null,"ml/h"]
[171,null,null,null,null,null,null,null,null,null,null,{"$error":"#DIV/0!"},null,null,null,null,null,null,null,null,null,null,null,null,null,null,null,null,"ml/h"]
[172,null,null,null,null,null,null,null,null,null,null,{"$error":"#DIV/0!"},null,null,null,null,null,null,null,null,null,null,null,null,null,null,null,null,"ml/h"]
[173,null,null,null,null,null,null,null,null,null,null,{"$error":"#DIV/0!"},null,null,null,null,null,null,null,null,null,null,null,null,null,null,null,null,"ml/h"]
[174,null,null,null,null,null,null,null,null,null,null,{"$error":"#DIV/0!"},null,null,null,null,null,null,null,null,null,null,null,null,null,null,null,null,"ml/h"]
[175,null,null,null,null,null,null,null,null,null,null,{"$error":"#DIV/0!"},null,null,null,null,null,null,null,null,null,null,null,null,null,null,null,null,"ml/h"]
[176,null,null,null,null,null,null,null,null,null,null,{"$error":"#DIV/0!"},null,null,null,null,null,null,null,null,null,null,null,null,null,null,null,null,"ml/h"]
[177,null,null,null,null,null,null,null,null,null,null,{"$error":"#DIV/0!"},null,null,null,null,null,null,null,null,null,null,null,null,null,null,null,null,"ml/h"]
[178,null,null,null,null,null,null,null,null,null,null,{"$error":"#DIV/0!"},null,null,null,null,null,null,null,null,null,null,null,null,null,null,null,null,"ml/h"]
[179,null,null,null,null,null,null,null,null,null,null,{"$error":"#DIV/0!"},null,null,null,null,null,null,null,null,null,null,null,null,null,null,null,null,"ml/h"]
[180,null,null,null,null,null,null,null,null,null,null,{"$error":"#DIV/0!"},null,null,null,null,null,null,null,null,null,null,null,null,null,null,null,null,"ml/h"]
[181,null,null,null,null,null,null,null,null,null,null,{"$error":"#DIV/0!"},null,null,null,null,null,null,null,null,null,null,null,null,null,null,null,null,"ml/h"]
[182,null,null,null,null,null,null,null,null,null,null,{"$error":"#DIV/0!"},null,null,null,null,null,null,null,null,null,null,null,null,null,null,null,null,"ml/h"]
[183,null,null,null,null,null,null,null,null,null,null,{"$error":"#DIV/0!"},null,null,null,null,null,null,null,null,null,null,null,null,null,null,null,null,"ml/h"]
[184,null,null,null,null,null,null,null,null,null,null,{"$error":"#DIV/0!"},null,null,null,null,null,null,null,null,null,null,null,null,null,null,null,null,"ml/h"]
[185,null,null,null,null,null,null,null,null,null,null,{"$error":"#DIV/0!"},null,null,null,null,null,null,null,null,null,null,null,null,null,null,null,null,"ml/h"]
[186,null,null,null,null,null,null,null,null,null,null,{"$error":"#DIV/0!"},null,null,null,null,null,null,null,null,null,null,null,null,null,null,null,null,"ml/h"]
[187,null,null,null,null,null,null,null,null,null,null,{"$error":"#DIV/0!"},null,null,null,null,null,null,null,null,null,null,null,null,null,null,null,null,"ml/h"]
[188,null,null,null,null,null,null,null,null,null,null,{"$error":"#DIV/0!"},null,null,null,null,null,null,null,null,null,null,null,null,null,null,null,null,"ml/h"]
[189,null,null,null,null,null,null,null,null,null,null,{"$error":"#DIV/0!"},null,null,null,null,null,null,null,null,null,null,null,null,null,null,null,null,"ml/h"]
[190,null,null,null,null,null,null,null,null,null,null,{"$error":"#DIV/0!"},null,null,null,null,null,null,null,null,null,null,null,null,null,null,null,null,"ml/h"]
[191,null,null,null,null,null,null,null,null,null,null,{"$error":"#DIV/0!"},null,null,null,null,null,null,null,null,null,null,null,null,null,null,null,null,"ml/h"]
[192,null,null,null,null,null,null,null,null,null,null,{"$error":"#DIV/0!"},null,null,null,null,null,null,null,null,null,null,null,null,null,null,null,null,"ml/h"]
[193,null,null,null,null,null,null,null,null,null,null,{"$f":"I203/K203","v":{"$error":"#DIV/0!"}},null,null,null,null,null,null,null,null,null,null,null,null,null,null,null,null,"ml/h"]
[194,null,null,null,null,null,null,null,null,null,null,{"$error":"#DIV/0!"},null,null,null,null,null,null,null,null,null,null,null,null,null,null,null,null,"ml/h"]
[195,null,null,null,null,null,null,null,null,null,null,{"$error":"#DIV/0!"},null,null,null,null,null,null,null,null,null,null,null,null,null,null,null,null,"ml/h"]
[196,null,null,null,null,null,null,null,null,null,null,{"$error":"#DIV/0!"},null,null,null,null,null,null,null,null,null,null,null,null,null,null,null,null,"ml/h"]
[197,null,null,null,null,null,null,null,null,null,null,{"$error":"#DIV/0!"},null,null,null,null,null,null,null,null,null,null,null,null,null,null,null,null,"ml/h"]
[198,null,null,null,null,null,null,null,null,null,null,{"$error":"#DIV/0!"},null,null,null,null,null,null,null,null,null,null,null,null,null,null,null,null,"ml/h"]
[199,null,null,null,null,null,null,null,null,null,null,{"$error":"#DIV/0!"},null,null,null,null,null,null,null,null,null,null,null,null,null,null,null,null,"ml/h"]
[200,null,null,null,null,null,null,null,null,null,null,{"$error":"#DIV/0!"},null,null,null,null,null,null,null,null,null,null,null,null,null,null,null,null,"ml/h"]
[201,null,null,null,null,null,null,null,null,null,null,{"$error":"#DIV/0!"},null,null,null,null,null,null,null,null,null,null,null,null,null,null,null,null,"ml/h"]
[202,null,null,null,null,null,null,null,null,null,null,{"$error":"#DIV/0!"},null,null,null,null,null,null,null,null,null,null,null,null,null,null,null,null,"ml/h"]
[203,null,null,null,null,null,null,null,null,null,null,{"$error":"#DIV/0!"},null,null,null,null,null,null,null,null,null,null,null,null,null,null,null,null,"ml/h"]
[204,null,null,null,null,null,null,null,null,null,null,{"$error":"#DIV/0!"},null,null,null,null,null,null,null,null,null,null,null,null,null,null,null,null,"ml/h"]
[205,null,null,null,null,null,null,null,null,null,null,{"$error":"#DIV/0!"},null,null,null,null,null,null,null,null,null,null,null,null,null,null,null,null,"ml/h"]
[206,null,null,null,null,null,null,null,null,null,null,{"$error":"#DIV/0!"},null,null,null,null,null,null,null,null,null,null,null,null,null,null,null,null,"ml/h"]
[207,null,null,null,null,null,null,null,null,null,null,{"$error":"#DIV/0!"},null,null,null,null,null,null,null,null,null,null,null,null,null,null,null,null,"ml/h"]
[208,null,null,null,null,null,null,null,null,null,null,{"$error":"#DIV/0!"},null,null,null,null,null,null,null,null,null,null,null,null,null,null,null,null,"ml/h"]
[209,null,null,null,null,null,null,null,null,null,null,{"$error":"#DIV/0!"},null,null,null,null,null,null,null,null,null,null,null,null,null,null,null,null,"ml/h"]
[210,null,null,null,null,null,null,null,null,null,null,{"$error":"#DIV/0!"},null,null,null,null,null,null,null,null,null,null,null,null,null,null,null,null,"ml/h"]
[211,null,null,null,null,null,null,null,null,null,null,{"$error":"#DIV/0!"},null,null,null,null,null,null,null,null,null,null,null,null,null,null,null,null,"ml/h"]
[212,null,null,null,null,null,null,null,null,null,null,{"$error":"#DIV/0!"},null,null,null,null,null,null,null,null,null,null,null,null,null,null,null,null,"ml/h"]
[213,null,null,null,null,null,null,null,null,null,null,{"$error":"#DIV/0!"},null,null,null,null,null,null,null,null,null,null,null,null,null,null,null,null,"ml/h"]
[214,null,null,null,null,null,null,null,null,null,null,{"$error":"#DIV/0!"},null,null,null,null,null,null,null,null,null,null,null,null,null,null,null,null,"ml/h"]
[215,null,null,null,null,null,null,null,null,null,null,{"$error":"#DIV/0!"},null,null,null,null,null,null,null,null,null,null,null,null,null,null,null,null,"ml/h"]
[216,null,null,null,null,null,null,null,null,null,null,{"$error":"#DIV/0!"},null,null,null,null,null,null,null,null,null,null,null,null,null,null,null,null,"ml/h"]
[217,null,null,null,null,null,null,null,null,null,null,{"$error":"#DIV/0!"},null,null,null,null,null,null,null,null,null,null,null,null,null,null,null,null,"ml/h"]
[218,null,null,null,null,null,null,null,null,null,null,{"$error":"#DIV/0!"},null,null,null,null,null,null,null,null,null,null,null,null,null,null,null,null,"ml/h"]
[219,null,null,null,null,null,null,null,null,null,null,{"$error":"#DIV/0!"},null,null,null,null,null,null,null,null,null,null,null,null,null,null,null,null,"ml/h"]
[220,null,null,null,null,null,null,null,null,null,null,{"$error":"#DIV/0!"},null,null,null,null,null,null,null,null,null,null,null,null,null,null,null,null,"ml/h"]
[221,null,null,null,null,null,null,null,null,null,null,{"$error":"#DIV/0!"},null,null,null,null,null,null,null,null,null,null,null,null,null,null,null,null,"ml/h"]
[222,null,null,null,null,null,null,null,null,null,null,{"$error":"#DIV/0!"},null,null,null,null,null,null,null,null,null,null,null,null,null,null,null,null,"ml/h"]
[223,null,null,null,null,null,null,null,null,null,null,{"$error":"#DIV/0!"},null,null,null,null,null,null,null,null,null,null,null,null,null,null,null,null,"ml/h"]
[224,null,null,null,null,null,null,null,null,null,null,{"$error":"#DIV/0!"},null,null,null,null,null,null,null,null,null,null,null,null,null,null,null,null,"ml/h"]
[225,null,null,null,null,null,null,null,null,null,null,{"$error":"#DIV/0!"},null,null,null,null,null,null,null,null,null,null,null,null,null,null,null,null,"ml/h"]
[226,null,null,null,null,null,null,null,null,null,null,{"$error":"#DIV/0!"},null,null,null,null,null,null,null,null,null,null,null,null,null,null,null,null,"ml/h"]
[227,null,null,null,null,null,null,null,null,null,null,{"$error":"#DIV/0!"},null,null,null,null,null,null,null,null,null,null,null,null,null,null,null,null,"ml/h"]
[228,null,null,null,null,null,null,null,null,null,null,{"$error":"#DIV/0!"},null,null,null,null,null,null,null,null,null,null,null,null,null,null,null,null,"ml/h"]
[229,null,null,null,null,null,null,null,null,null,null,{"$error":"#DIV/0!"},null,null,null,null,null,null,null,null,null,null,null,null,null,null,null,null,"ml/h"]
[230,null,null,null,null,null,null,null,null,null,null,{"$error":"#DIV/0!"},null,null,null,null,null,null,null,null,null,null,null,null,null,null,null,null,"ml/h"]
[231,null,null,null,null,null,null,null,null,null,null,{"$error":"#DIV/0!"},null,null,null,null,null,null,null,null,null,null,null,null,null,null,null,null,"ml/h"]
[232,null,null,null,null,null,null,null,null,null,null,{"$error":"#DIV/0!"},null,null,null,null,null,null,null,null,null,null,null,null,null,null,null,null,"ml/h"]
[233,null,null,null,null,null,null,null,null,null,null,{"$error":"#DIV/0!"},null,null,null,null,null,null,null,null,null,null,null,null,null,null,null,null,"ml/h"]
[234,null,null,null,null,null,null,null,null,null,null,{"$error":"#DIV/0!"},null,null,null,null,null,null,null,null,null,null,null,null,null,null,null,null,"ml/h"]
[235,null,null,null,null,null,null,null,null,null,null,{"$error":"#DIV/0!"},null,null,null,null,null,null,null,null,null,null,null,null,null,null,null,null,"ml/h"]
[236,null,null,null,null,null,null,null,null,null,null,{"$error":"#DIV/0!"},null,null,null,null,null,null,null,null,null,null,null,null,null,null,null,null,"ml/h"]
[237,null,null,null,null,null,null,null,null,null,null,{"$error":"#DIV/0!"},null,null,null,null,null,null,null,null,null,null,null,null,null,null,null,null,"ml/h"]
[238,null,null,null,null,null,null,null,null,null,null,{"$error":"#DIV/0!"},null,null,null,null,null,null,null,null,null,null,null,null,null,null,null,null,"ml/h"]
[239,null,null,null,null,null,null,null,null,null,null,{"$error":"#DIV/0!"},null,null,null,null,null,null,null,null,null,null,null,null,null,null,null,null,"ml/h"]
[240,null,null,null,null,null,null,null,null,null,null,{"$error":"#DIV/0!"},null,null,null,null,null,null,null,null,null,null,null,null,null,null,null,null,"ml/h"]
[241,null,null,null,null,null,null,null,null,null,null,{"$error":"#DIV/0!"},null,null,null,null,null,null,null,null,null,null,null,null,null,null,null,null,"ml/h"]
[242,null,null,null,null,null,null,null,null,null,null,{"$error":"#DIV/0!"},null,null,null,null,null,null,null,null,null,null,null,null,null,null,null,null,"ml/h"]
[243,null,null,null,null,null,null,null,null,null,null,{"$error":"#DIV/0!"},null,null,null,null,null,null,null,null,null,null,null,null,null,null,null,null,"ml/h"]
[244,null,null,null,null,null,null,null,null,null,null,{"$error":"#DIV/0!"},null,null,null,null,null,null,null,null,null,null,null,null,null,null,null,null,"ml/h"]
[245,null,null,null,null,null,null,null,null,null,null,{"$error":"#DIV/0!"},null,null,null,null,null,null,null,null,null,null,null,null,null,null,null,null,"ml/h"]
[246,null,null,null,null,null,null,null,null,null,null,{"$error":"#DIV/0!"},null,null,null,null,null,null,null,null,null,null,null,null,null,null,null,null,"ml/h"]
[247,null,null,null,null,null,null,null,null,null,null,{"$error":"#DIV/0!"},null,null,null,null,null,null,null,null,null,null,null,null,null,null,null,null,"ml/h"]
[248,null,null,null,null,null,null,null,null,null,null,{"$error":"#DIV/0!"},null,null,null,null,null,null,null,null,null,null,null,null,null,null,null,null,"ml/h"]
[249,null,null,null,null,null,null,null,null,null,null,{"$error":"#DIV/0!"},null,null,null,null,null,null,null,null,null,null,null,null,null,null,null,null,"ml/h"]
[250,null,null,null,null,null,null,null,null,null,null,{"$error":"#DIV/0!"},null,null,null,null,null,null,null,null,null,null,null,null,null,null,null,null,"ml/h"]
[251,null,null,null,null,null,null,null,null,null,null,{"$error":"#DIV/0!"},null,null,null,null,null,null,null,null,null,null,null,null,null,null,null,null,"ml/h"]
[252,null,null,null,null,null,null,null,null,null,null,{"$error":"#DIV/0!"},null,null,null,null,null,null,null,null,null,null,null,null,null,null,null,null,"ml/h"]
[253,null,null,null,null,null,null,null,null,null,null,{"$error":"#DIV/0!"},null,null,null,null,null,null,null,null,null,null,null,null,null,null,null,null,"ml/h"]
[254,null,null,null,null,null,null,null,null,null,null,{"$error":"#DIV/0!"},null,null,null,null,null,null,null,null,null,null,null,null,null,null,null,null,"ml/h"]
[255,null,null,null,null,null,null,null,null,null,null,{"$error":"#DIV/0!"},null,null,null,null,null,null,null,null,null,null,null,null,null,null,null,null,"ml/h"]
[256,null,null,null,null,null,null,null,null,null,null,{"$error":"#DIV/0!"},null,null,null,null,null,null,null,null,null,null,null,null,null,null,null,null,"ml/h"]
[257,null,null,null,null,null,null,null,null,null,null,{"$f":"I267/K267","v":{"$error":"#DIV/0!"}},null,null,null,null,null,null,null,null,null,null,null,null,null,null,null,null,"ml/h"]
[258,null,null,null,null,null,null,null,null,null,null,{"$error":"#DIV/0!"},null,null,null,null,null,null,null,null,null,null,null,null,null,null,null,null,"ml/h"]
[259,null,null,null,null,null,null,null,null,null,null,{"$error":"#DIV/0!"},null,null,null,null,null,null,null,null,null,null,null,null,null,null,null,null,"ml/h"]
[260,null,null,null,null,null,null,null,null,null,null,{"$error":"#DIV/0!"},null,null,null,null,null,null,null,null,null,null,null,null,null,null,null,null,"ml/h"]
[261,null,null,null,null,null,null,null,null,null,null,{"$error":"#DIV/0!"},null,null,null,null,null,null,null,null,null,null,null,null,null,null,null,null,"ml/h"]
[262,null,null,null,null,null,null,null,null,null,null,{"$error":"#DIV/0!"},null,null,null,null,null,null,null,null,null,null,null,null,null,null,null,null,"ml/h"]
[263,null,null,null,null,null,null,null,null,null,null,{"$error":"#DIV/0!"},null,null,null,null,null,null,null,null,null,null,null,null,null,null,null,null,"ml/h"]
[264,null,null,null,null,null,null,null,null,null,null,{"$error":"#DIV/0!"},null,null,null,null,null,null,null,null,null,null,null,null,null,null,null,null,"ml/h"]
[265,null,null,null,null,null,null,null,null,null,null,{"$error":"#DIV/0!"},null,null,null,null,null,null,null,null,null,null,null,null,null,null,null,null,"ml/h"]
[266,null,null,null,null,null,null,null,null,null,null,{"$error":"#DIV/0!"},null,null,null,null,null,null,null,null,null,null,null,null,null,null,null,null,"ml/h"]
[267,null,null,null,null,null,null,null,null,null,null,{"$error":"#DIV/0!"},null,null,null,null,null,null,null,null,null,null,null,null,null,null,null,null,"ml/h"]
[268,null,null,null,null,null,null,null,null,null,null,{"$error":"#DIV/0!"},null,null,null,null,null,null,null,null,null,null,null,null,null,null,null,null,"ml/h"]
[269,null,null,null,null,null,null,null,null,null,null,{"$error":"#DIV/0!"},null,null,null,null,null,null,null,null,null,null,null,null,null,null,null,null,"ml/h"]
[270,null,null,null,null,null,null,null,null,null,null,{"$error":"#DIV/0!"},null,null,null,null,null,null,null,null,null,null,null,null,null,null,null,null,"ml/h"]
[271,null,null,null,null,null,null,null,null,null,null,{"$error":"#DIV/0!"},null,null,null,null,null,null,null,null,null,null,null,null,null,null,null,null,"ml/h"]
[272,null,null,null,null,null,null,null,null,null,null,{"$error":"#DIV/0!"},null,null,null,null,null,null,null,null,null,null,null,null,null,null,null,null,"ml/h"]
[273,null,null,null,null,null,null,null,null,null,null,{"$error":"#DIV/0!"},null,null,null,null,null,null,null,null,null,null,null,null,null,null,null,null,"ml/h"]
[274,null,null,null,null,null,null,null,null,null,null,{"$error":"#DIV/0!"},null,null,null,null,null,null,null,null,null,null,null,null,null,null,null,null,"ml/h"]
[275,null,null,null,null,null,null,null,null,null,null,{"$error":"#DIV/0!"},null,null,null,null,null,null,null,null,null,null,null,null,null,null,null,null,"ml/h"]
[276,null,null,null,null,null,null,null,null,null,null,{"$error":"#DIV/0!"},null,null,null,null,null,null,null,null,null,null,null,null,null,null,null,null,"ml/h"]
[277,null,null,null,null,null,null,null,null,null,null,{"$error":"#DIV/0!"},null,null,null,null,null,null,null,null,null,null,null,null,null,null,null,null,"ml/h"]
[278,null,null,null,null,null,null,null,null,null,null,{"$error":"#DIV/0!"},null,null,null,null,null,null,null,null,null,null,null,null,null,null,null,null,"ml/h"]
[279,null,null,null,null,null,null,null,null,null,null,{"$error":"#DIV/0!"},null,null,null,null,null,null,null,null,null,null,null,null,null,null,null,null,"ml/h"]
[280,null,null,null,null,null,null,null,null,null,null,{"$error":"#DIV/0!"},null,null,null,null,null,null,null,null,null,null,null,null,null,null,null,null,"ml/h"]
[281,null,null,null,null,null,null,null,null,null,null,{"$error":"#DIV/0!"},null,null,null,null,null,null,null,null,null,null,null,null,null,null,null,null,"ml/h"]
[282,null,null,null,null,null,null,null,null,null,null,{"$error":"#DIV/0!"},null,null,null,null,null,null,null,null,null,null,null,null,null,null,null,null,"ml/h"]
[283,null,null,null,null,null,null,null,null,null,null,{"$error":"#DIV/0!"},null,null,null,null,null,null,null,null,null,null,null,null,null,null,null,null,"ml/h"]
[284,null,null,null,null,null,null,null,null,null,null,{"$error":"#DIV/0!"},null,null,null,null,null,null,null,null,null,null,null,null,null,null,null,null,"ml/h"]
[285,null,null,null,null,null,null,null,null,null,null,{"$error":"#DIV/0!"},null,null,null,null,null,null,null,null,null,null,null,null,null,null,null,null,"ml/h"]
[286,null,null,null,null,null,null,null,null,null,null,{"$error":"#DIV/0!"},null,null,null,null,null,null,null,null,null,null,null,null,null,null,null,null,"ml/h"]
[287,null,null,null,null,null,null,null,null,null,null,{"$error":"#DIV/0!"},null,null,null,null,null,null,null,null,null,null,null,null,null,null,null,null,"ml/h"]
[288,null,null,null,null,null,null,null,null,null,null,{"$error":"#DIV/0!"},null,null,null,null,null,null,null,null,null,null,null,null,null,null,null,null,"ml/h"]
[289,null,null,null,null,null,null,null,null,null,null,{"$error":"#DIV/0!"},null,null,null,null,null,null,null,null,null,null,null,null,null,null,null,null,"ml/h"]
[290,null,null,null,null,null,null,null,null,null,null,{"$error":"#DIV/0!"},null,null,null,null,null,null,null,null,null,null,null,null,null,null,null,null,"ml/h"]
[291,null,null,null,null,null,null,null,null,null,null,{"$error":"#DIV/0!"},null,null,null,null,null,null,null,null,null,null,null,null,null,null,null,null,"ml/h"]
[292,null,null,null,null,null,null,null,null,null,null,{"$error":"#DIV/0!"},null,null,null,null,null,null,null,null,null,null,null,null,null,null,null,null,"ml/h"]
[293,null,null,null,null,null,null,null,null,null,null,{"$error":"#DIV/0!"},null,null,null,null,null,null,null,null,null,null,null,null,null,null,null,null,"ml/h"]
[294,null,null,null,null,null,null,null,null,null,null,{"$error":"#DIV/0!"},null,null,null,null,null,null,null,null,null,null,null,null,null,null,null,null,"ml/h"]
[295,null,null,null,null,null,null,null,null,null,null,{"$error":"#DIV/0!"},null,null,null,null,null,null,null,null,null,null,null,null,null,null,null,null,"ml/h"]
[296,null,null,null,null,null,null,null,null,null,null,{"$error":"#DIV/0!"},null,null,null,null,null,null,null,null,null,null,null,null,null,null,null,null,"ml/h"]
[297,null,null,null,null,null,null,null,null,null,null,{"$error":"#DIV/0!"},null,null,null,null,null,null,null,null,null,null,null,null,null,null,null,null,"ml/h"]
[298,null,null,null,null,null,null,null,null,null,null,{"$error":"#DIV/0!"},null,null,null,null,null,null,null,null,null,null,null,null,null,null,null,null,"ml/h"]
[299,null,null,null,null,null,null,null,null,null,null,{"$error":"#DIV/0!"},null,null,null,null,null,null,null,null,null,null,null,null,null,null,null,null,"ml/h"]

{"sheet":"Picklist","index":1,"n_rows":27,"n_cols":18,"rows_kept":27,"cut":false,"hidden":true,"merged":[]}
[]
[null,"Doseguard rate",null,"Concentration",null,"Bolus Amount",null,"Bolus Rate",null,"PCA Dose limit",null,"PCA Bolus Amount",null,"Manual Bolus",null,"Perfusor/Infusomat",null,"Drug Color"]
[null,"ml/h",null,"g",null,"ml",null,"ml/h",null,"ml",null,"ml",null,"YES",null,"-",null,"Pink"]
[null,"g/min",null,"mg",null,"g",null,null,null,"g",null,"g",null,"No",null,"X",null,"Blue"]
[null,"g/h",null,"mcg",null,"mg",null,null,null,"mg",null,"mg",null,null,null,null,null,"Orange"]
[null,"g/24h",null,"ng",null,"mcg",null,null,null,"mcg",null,"mcg",null,null,null,null,null,"Green"]
[null,"mg/min",null,"MU",null,"ng",null,null,null,"ng",null,"ng",null,null,null,null,null,"Coral"]
[null,"mg/h",null,"kIU",null,"g/kg",null,null,null,"g/kg",null,"g/kg",null,null,null,null,null,"Yellow"]
[null,"mg/24h",null,"IU",null,"mg/kg",null,null,null,"mg/kg",null,"mg/kg",null,null,null,null,null,"Red"]
[null,"mcg/min",null,"mIU",null,"mcg/kg",null,null,null,"mcg/kg",null,"mcg/kg",null,null,null,null,null,"No color"]
[null,"mcg/h",null,"mEq",null,"ng/kg",null,null,null,"ng/kg",null,"ng/kg"]
[null,"mcg/24h",null,"mmol"]
[null,"ng/min",null,"kcal"]
[null,"ng/h"]
[null,"ng/24h"]
[null,"g/kg/min"]
[null,"g/kg/h"]
[null,"g/kg/24h"]
[null,"mg/kg/min"]
[null,"mg/kg/h"]
[null,"mg/kg/24h"]
[null,"mcg/kg/min"]
[null,"mcg/kg/h"]
[null,"mcg/kg/24h"]
[null,"ng/kg/min"]
[null,"ng/kg/h"]
[null,"ng/kg/24h"]